[Event "FRA-ch Youth 2017"]
[Site "Belfort"]
[Date "2017.04.17"]
[Round "3"]
[White "Boulart, Emilie"]
[Black "Rollot, Florence"]
[Result "1-0"]
[ECO "B22"]
[WhiteElo "1636"]
[BlackElo "1973"]
[Annotator "NA"]
[PlyCount "110"]
[EventDate "2017.??.??"]
[EventCountry "FRA"]
[SourceTitle "playchess.com"]
[Source "ChessBase"]
[SourceQuality "1"]
[TimeControl "5400+30"]

1. e4 {[%emt 0:00:00]} c5 {[%emt 0:00:06]} 2. c3 {[%emt 0:00:00]} d5 {[%emt 0:00:07]} 3. exd5 {[%emt 0:00:00]} Qxd5 {[%emt 0:00:06]} 4. d4 {[%emt 0:01:58]} Nf6 {[%emt 0:00:07]} 5. Nf3 {[%emt 0:01:54]} Bg4 {[%emt 0:00:10]} 6. Be2 {[%emt 0:00:21]} e6 {[%emt 0:00:22]} 7. Be3 {[%emt 0:01:24]} cxd4 {[%emt 0:03:53]} 8. cxd4 {[%emt 0:00:08]} Nc6 {[%emt 0:00:24]} ({Of course not} 8... Bxf3 9. Bxf3 Qa5+ 10. Nc3 $16) 9. Nc3 {[%emt 0:01:29]} Qd6 {[%emt 0:01:36]} 10. O-O {[%emt 0:06:10]} Be7 {[%emt 0:00:59]} 11. h3 {[%emt 0:02:07]} Bh5 {[%emt 0:00:22]} 12. Qb3 {[%emt 0:08:36]} O-O {[%emt 0:01:55] LiveBook: 167 Games} 13. Rfd1 {[%emt 0:03:47]} Rfd8 {[%emt 0:01:50]} 14. Rac1 {[%emt 0:03:46]} Qb4 {[%emt 0:04:45]} 15. Qxb4 {[%emt 0:03:28]} Nxb4 {[%emt 0:00:53]} 16. g4 {[%emt 0:04:25]} Bg6 {[%emt 0:01:35]} 17. Ne5 {[%emt 0:00:30]} Rac8 {[%emt 0:02:26]} 18. Bf3 {[%emt 0:06:58]} Nfd5 {[%emt 0:06:24]} 19. a3 {[%emt 0:09:11]} Nxc3 {[%emt 0:01:46]} 20. Rxc3 {[%emt 0:06:10]} Rxc3 {[%emt 0:06:02]} 21. bxc3 {[%emt 0:00:07]} Nc2 {[%emt 0:11:19]} 22. a4 {[%emt 0:18:41]} Nxe3 {[%emt 0:09:43]} 23. fxe3 {[%emt 0:00:11]} Bc2 {[%emt 0:00:56]} 24. Rd2 {[%emt 0:08:13]} Bxa4 {[%emt 0:01:22]} 25. Bxb7 {[%emt 0:02:08]} Rb8 {[%emt 0:07:34]} 26. Ra2 {[%emt 0:01:21]} Rxb7 $14 {[%emt 0:01:21]} 27. Rxa4 {[%emt 0:00:07]} Bg5 {[%emt 0:01:39]} 28. Kf2 {[%emt 0:01:33]} Rb2+ {[%emt 0:09:19]} 29. Kf3 {[%emt 0:00:15]} f6 {[%emt 0:00:24]} 30. Nc4 {[%emt 0:02:24]} Rb3 {[%emt 0:04:11]} 31. Ra3 {[%emt 0:00:25]} Rxa3 {[%emt 0:01:34]} 32. Nxa3 {[%emt 0:00:04]} Kf7 {[%emt 0:00:19]} 33. c4 {[%emt 0:01:09]} Ke7 {[%emt 0:00:32]} 34. Ke4 {[%emt 0:00:55]} a6 {[%emt 0:01:39]} 35. c5 {[%emt 0:00:35]} Kd7 {[%emt 0:00:15]} 36. Nc4 {[%emt 0:01:47]} Kc6 {[%emt 0:05:22]} 37. Nb6 {[%emt 0:01:27]} a5 {[%emt 0:01:09]} 38. Kd3 {[%emt 0:01:27]} Kb5 {[%emt 0:01:21]} 39. e4 {[%emt 0:00:53]} Bf4 {[%emt 0:01:58]} 40. Kc3 {[%emt 0:01:17]} Bg3 {[%emt 0:02:45]} 41. Nc4 {[%emt 0:00:57]} e5 {[%emt 0:01:21]} 42. Na3+ {[%emt 0:00:44]} Kc6 {[%emt 0:00:55]} 43. Nc4 {[%emt 0:00:56]} exd4+ {[%emt 0:00:23]} 44. Kxd4 {[%emt 0:00:11]} Bf2+ {[%emt 0:00:07]} 45. Kc3 {[%emt 0:00:58]} Kxc5 {[%emt 0:00:12]} 46. Na3 {[%emt 0:00:28]} Be1+ {[%emt 0:00:33]} 47. Kd3 {[%emt 0:00:17]} a4 {[%emt 0:00:24]} 48. Nc2 {[%emt 0:00:43]} Bb4 {[%emt 0:00:27]} 49. Na1 {[%emt 0:00:12]} a3 {[%emt 0:00:27]} 50. Nb3+ {[%emt 0:00:14]} Kb5 {[%emt 0:00:25]} 51. Na1 {[%emt 0:00:22]} a2 {[%emt 0:00:31]} 52. Kc2 {[%emt 0:00:26]} Kc4 {[%emt 0:00:12]} 53. Kb2 {[%emt 0:00:36]} Bc3+ {[%emt 0:00:24]} 54. Kxa2 {[%emt 0:00:05]} Bxa1 {[%emt 0:00:05]} 55. Kxa1 {[%emt 0:00:04]} Kd4 {[%emt 0:00:06]} 1-0

[Event "FRA-ch Youth 2017"]
[Site "Belfort"]
[Date "2017.04.17"]
[Round "3"]
[White "David, Iris"]
[Black "Leriche, Ines"]
[Result "0-1"]
[ECO "D10"]
[WhiteElo "1587"]
[BlackElo "2037"]
[Annotator "NA"]
[PlyCount "60"]
[EventDate "2017.??.??"]
[EventCountry "FRA"]
[SourceTitle "playchess.com"]
[Source "ChessBase"]
[SourceQuality "1"]
[TimeControl "5400+30"]

1. d4 {[%emt 0:00:00]} d5 {[%emt 0:00:13]} 2. c4 {[%emt 0:00:00]} c6 {[%emt 0:00:10]} 3. Nc3 {[%emt 0:00:18]} Nf6 {[%emt 0:00:15]} 4. cxd5 {[%emt 0:00:45]} cxd5 {[%emt 0:00:17]} 5. Bf4 {[%emt 0:00:45]} Nc6 {[%emt 0:02:57]} 6. e3 {[%emt 0:01:32]} a6 {[%emt 0:10:27]} 7. Nf3 {[%emt 0:01:47]} Bg4 {[%emt 0:00:34]} 8. Be2 {[%emt 0:02:41]} e6 {[%emt 0:02:07]} 9. Ne5 {[%emt 0:03:16] LiveBook: 68 Games} Bxe2 {[%emt 0:10:16]} 10. Qxe2 {[%emt 0:03:06]} Rc8 {[%emt 0:03:26]} 11. Nxc6 {[%emt 0:04:17] D13: Slav Defence: Exchange variation without ...Bf5} (11. O-O Be7 12. Rfc1 O-O 13. Nxc6 Rxc6 14. Na4 Qd7 15. Qd1 Rfc8 16. Nc3 Rc4 17. Ne2 Qb5 18. b3 Rxc1 19. Rxc1 Rxc1 20. Nxc1 {½-½ (46) Sieciechowicz,M (2449)-Dziuba,M (2610) Poland 2013}) 11... Rxc6 {[%emt 0:00:25]} 12. a3 {[%emt 0:02:12]} Be7 $146 {[%emt 0:07:24]} (12... Bd6 13. Bxd6 Qxd6 14. O-O O-O 15. f3 b5 {½-½ (15) Kalinin,O (2378)-Bobula,M (2389) Rybnik 2009}) 13. O-O {[%emt 0:01:14]} O-O {[%emt 0:01:17]} 14. Rac1 {[%emt 0:04:03]} Qa5 {[%emt 0:03:06]} 15. Qd3 {[%emt 0:04:37]} Rfc8 {[%emt 0:04:10]} 16. Rc2 {[%emt 0:01:46]} Ne4 {[%emt 0:05:09]} 17. Rfc1 {[%emt 0:03:40]} Nxc3 {[%emt 0:02:28]} 18. Rxc3 {[%emt 0:01:39]} Rxc3 {[%emt 0:00:44]} 19. Rxc3 {[%emt 0:03:15]} Rxc3 {[%emt 0:00:16]} 20. Qxc3 {[%emt 0:01:53]} Qxc3 {[%emt 0:00:21]} 21. bxc3 {[%emt 0:00:06]} Bxa3 {[%emt 0:00:10]} 22. Bc7 {[%emt 0:00:17]} Kf8 {[%emt 0:02:21]} 23. Kf1 {[%emt 0:01:06]} Ke7 {[%emt 0:00:11]} 24. Ke2 {[%emt 0:01:42]} Kd7 {[%emt 0:00:20]} 25. Ba5 {[%emt 0:03:25]} Kc6 {[%emt 0:00:56]} 26. Kd3 {[%emt 0:00:14]} Kb5 {[%emt 0:09:04]} 27. Bc7 {[%emt 0:05:24]} a5 {[%emt 0:02:10]} 28. e4 a4 $19 {[%emt 0:08:28]} 29. e5 {[%emt 0:12:34]} Be7 {[%emt 0:01:46]} 30. Kc2 {[%emt 0:02:17]} b6 {[%emt 0:03:19]} 0-1

[Event "FRA-ch Youth 2017"]
[Site "Belfort"]
[Date "2017.04.18"]
[Round "4"]
[White "Leriche, Ines"]
[Black "Mars, Fiona"]
[Result "1-0"]
[ECO "D85"]
[WhiteElo "2037"]
[BlackElo "1799"]
[Annotator "NA RC"]
[PlyCount "38"]
[EventDate "2017.??.??"]
[EventCountry "FRA"]
[SourceTitle "playchess.com"]
[Source "ChessBase"]
[SourceQuality "1"]
[TimeControl "5400+30"]

{[%evp 18,39,29,32,34,12,62,-49,106,76,342,243,229,256,233,273,645,438,658,484,461,-118,-126,-114]} 1. d4 {[%emt 0:00:00]} Nf6 {[%emt 0:00:16]} 2. c4 {[%emt 0:00:00]} g6 {[%emt 0:00:09]} 3. Nc3 {[%emt 0:00:01]} d5 {[%emt 0:00:26]} 4. cxd5 {[%emt 0:00:19]} Nxd5 {[%emt 0:00:11]} 5. e4 {[%emt 0:00:25]} Nxc3 {[%emt 0:00:20]} 6. bxc3 {[%emt 0:00:07]} Bg7 {[%emt 0:00:12]} 7. Nf3 {[%emt 0:00:40]} c5 {[%emt 0:00:54]} 8. Be3 {[%emt 0:00:15]} Bg4 {[%emt 0:00:52]} 9. Rc1 {[%emt 0:06:27]} O-O {[%emt 0:07:48] LiveBook: 46 Games} 10. d5 {[%emt 0:02:50] D85: Exchange Grünfeld: Unusual White 7th moves and lines with 7 Nf3} Qc7 $146 {[%emt 0:07:15]} (10... Qd6 11. Be2 Nd7 12. c4 f5 13. Ng5 Bxe2 14. Qxe2 f4 15. Bd2 e5 16. Ne6 Rf7 17. f3 Bf6 {½-½ (31) Lupulescu,C (2609)-Vachier Lagrave,M (2811) Novi Sad 2016}) 11. Qd2 {[%emt 0:05:13]} Rd8 {[%emt 0:08:44]} 12. Bh6 {[%emt 0:11:08]} (12. Bf4 $14 Qa5 13. Ne5) 12... Bh8 {[%emt 0:02:52]} (12... Bxh6 $11 13. Qxh6 Bxf3 14. gxf3 Nd7) 13. h4 {[%emt 0:10:58]} f5 $2 {[%emt 0:09:45]} (13... Bxf3 $16 14. gxf3 Nd7) 14. d6 {[%emt 0:30:54]} Rxd6 {[%emt 0:09:43]} 15. Bc4+ {[%emt 0:00:23]} e6 {[%emt 0:00:07] [#]} 16. Ng5 $1 {[%emt 0:02:29]} ({But not} 16. Bf4 $6 Rxd2 17. Bxc7 Rb2 $16) 16... f4 $2 {[%emt 0:02:54]} (16... fxe4 17. Qf4 Bg7) 17. Qxf4 {[%emt 0:06:51]} Bxc3+ 18. Kf1 Bg7 19. Bxe6+ $17 ({White should play} 19. Qxg4 $18 Bxh6 20. Nxe6 (20. Bxe6+ Kg7 21. e5 Rd8 $18)) 19... Bxe6 1-0

[Event "FRA-ch Youth 2017"]
[Site "Belfort"]
[Date "2017.04.18"]
[Round "4"]
[White "Popov, Konstantin"]
[Black "Laurent-Paoli, Louis"]
[Result "1/2-1/2"]
[ECO "C78"]
[WhiteElo "2026"]
[BlackElo "1749"]
[Annotator "NA RC"]
[PlyCount "134"]
[EventDate "2017.??.??"]
[EventCountry "FRA"]
[SourceTitle "playchess.com"]
[Source "ChessBase"]
[SourceQuality "1"]
[TimeControl "5400+30"]

{[%evp 16,128,24,12,53,0,8,25,23,16,29,34,64,74,105,72,67,80,97,81,83,64,73,0,0,0,0,0,6,-252,-52,-43,-10,-12,-26,-10,-9,-25,-15,-30,-11,-19,0,0,0,0,6,4,0,0,-41,0,0,0,0,0,32767,0,0,0,0,0,0,0,0,-44,56,37,63,42,48,95,83,29,31,42,37,34,37,8,15,27,576,1191,1362,70,12,8,11,0,604,592,4627,0,0,8,8,0,8,0,0,0,0,0,0,0,4,0,8,0,8,0,0,0,0]} 1. e4 {[%emt 0:00:00]} e5 {[%emt 0:00:16]} 2. Nf3 {[%emt 0:00:28]} Nc6 {[%emt 0:00:18]} 3. Bb5 {[%emt 0:00:42]} a6 {[%emt 0:00:22]} 4. Ba4 {[%emt 0:00:42]} Nf6 {[%emt 0:00:25]} 5. O-O {[%emt 0:00:25]} b5 {[%emt 0:00:12]} 6. Bb3 {[%emt 0:00:08]} Be7 {[%emt 0:00:23]} 7. c3 {[%emt 0:00:57]} O-O {[%emt 0:00:41]} 8. d3 {[%emt 0:00:19]} d5 {[%emt 0:11:45]} 9. Nbd2 {[%emt 0:03:07] LiveBook: 9 Games} Bg4 {[%emt 0:08:58] C77: Ruy Lopez: 3...a6 4 Ba4 Nf6, unusual lines} (9... Bb7 10. Re1 dxe4 11. dxe4 Bc5 12. h3 Nh5 13. Bd5 Qf6 14. a4 Nf4 15. Nb3 Bb6 16. Bxf4 Qxf4 17. Qe2 bxa4 18. Rxa4 Rfd8 19. Rc4 {1-0 (31) Morozevich,A (2743)-Bacrot,E (2712) Biel 2004}) 10. Re1 {[%emt 0:03:35]} dxe4 {[%emt 0:09:03]} 11. dxe4 {[%emt 0:00:14]} Qd7 {[%emt 0:06:02]} 12. h3 {[%emt 0:03:02]} Bh5 {[%emt 0:02:50]} 13. Qe2 {[%emt 0:00:19]} Rad8 $146 {[%emt 0:10:00]} (13... Bg6 14. Nh4 Na5 15. Nxg6 hxg6 {½-½ (73) Bravo Barranco,N (2305)-Sanahuja Palomo,A (2105) Martorell 1997}) 14. Bc2 {[%emt 0:00:39]} Bc5 {[%emt 0:04:00]} 15. Nf1 {[%emt 0:00:19]} h6 {[%emt 0:05:02]} 16. Ng3 {[%emt 0:00:10]} Bxf3 {[%emt 0:02:58]} 17. Qxf3 {[%emt 0:00:12]} Nh7 {[%emt 0:02:29]} 18. Nf5 {[%emt 0:23:43]} Ne7 {[%emt 0:02:54]} 19. Qg4 {[%emt 0:01:53]} (19. b4 $14 Nxf5 20. Qxf5 (20. bxc5 Nh4 21. Qg3 Ng6 $11) (20. exf5 Bd6 $14) 20... Qxf5 21. exf5) 19... Nxf5 {[%emt 0:00:52]} 20. exf5 {[%emt 0:00:08]} Nf6 {[%emt 0:01:59]} 21. Qh4 {[%emt 0:01:18]} e4 {[%emt 0:02:59]} 22. Bxe4 $2 {[%emt 0:08:34] [#]} (22. Bxh6 $11 {and White stays safe.} Qxf5 23. Bf4) 22... Nxe4 $2 {[%emt 0:00:14]} (22... Rde8 $1 $19 23. Bxh6 Nxe4 24. Rxe4 Rxe4 25. Qxe4 gxh6 26. Qg4+ Kh7) 23. Rxe4 {[%emt 0:00:45]} Qxf5 {[%emt 0:01:26]} 24. Be3 {[%emt 0:00:35]} Bxe3 {[%emt 0:01:32]} 25. Rxe3 {[%emt 0:00:30]} Rd2 {[%emt 0:02:25]} 26. b4 {[%emt 0:01:31]} Rfd8 {[%emt 0:05:09]} 27. Qg3 {[%emt 0:02:57]} c6 {[%emt 0:05:32]} 28. a3 {[%emt 0:02:43]} Rd1+ {[%emt 0:00:54]} 29. Rxd1 {[%emt 0:00:08]} Rxd1+ {[%emt 0:00:10]} 30. Kh2 {[%emt 0:00:04]} Qb1 {[%emt 0:01:19]} 31. Re8+ {[%emt 0:01:20]} Kh7 {[%emt 0:00:14]} 32. Qg4 {[%emt 0:05:25]} Rh1+ {[%emt 0:01:09]} 33. Kg3 {[%emt 0:00:08]} Qd3+ {[%emt 0:00:29]} 34. Re3 {[%emt 0:02:06]} Qd6+ {[%emt 0:00:35]} 35. Qf4 {[%emt 0:04:34]} Qg6+ {[%emt 0:00:15]} 36. Kf3 {[%emt 0:02:06]} Qh5+ {[%emt 0:00:31]} 37. Qg4 {[%emt 0:17:16]} Qxg4+ {[%emt 0:05:35]} 38. hxg4 {[%emt 0:00:15]} Ra1 {[%emt 0:00:14]} 39. Ke4 {[%emt 0:00:28]} Rxa3 {[%emt 0:00:56]} 40. Kd4 {[%emt 0:00:08]} a5 {[%emt 0:00:55]} (40... Kg6 $11) 41. Kc5 {[%emt 0:00:57]} axb4 {[%emt 0:00:35]} 42. cxb4 {[%emt 0:00:05]} Ra4 {[%emt 0:03:57]} 43. Rb3 {[%emt 0:02:13]} Ra6 {[%emt 0:00:43]} 44. Rd3 {[%emt 0:00:17]} g5 {[%emt 0:00:51]} 45. f3 {[%emt 0:01:23]} Ra2 $1 {[%emt 0:01:52]} 46. Kxc6 {[%emt 0:00:11]} Rxg2 {[%emt 0:00:15]} 47. Kxb5 {[%emt 0:00:09]} h5 {[%emt 0:00:21]} 48. gxh5 {[%emt 0:01:30]} g4 $2 {[%emt 0:00:21]} (48... f5 $1 $11) 49. fxg4 {[%emt 0:00:21]} Rxg4 {[%emt 0:00:11]} 50. Rh3 $2 {[%emt 0:00:07]} (50. Kc5 $18) 50... f5 $1 {[%emt 0:01:42]} 51. Kc5 {[%emt 0:00:17]} f4 {[%emt 0:00:18]} 52. b5 {[%emt 0:00:09]} Kh6 $2 {[%emt 0:00:29]} (52... Rg5+ $11 53. Kc6 Rg3) 53. b6 {[%emt 0:00:22]} Rg3 {[%emt 0:00:44] [#]} 54. Rh1 $2 {[%emt 0:00:08]} ({And not} 54. Rxg3 fxg3 55. Kd5 (55. b7 g2 56. Kd5 g1=Q $11) 55... g2 $11) (54. b7 $1 $18 {[%mdl 512] Rxg3 would kill now.} Rxh3 55. b8=Q Kxh5 56. Qxf4) 54... Rb3 {[%emt 0:00:36]} 55. Kc6 {[%emt 0:00:45]} f3 {[%emt 0:00:15]} 56. Rh2 {[%emt 0:02:01]} Rc3+ {[%emt 0:00:27]} 57. Kd7 {[%emt 0:00:37]} Rb3 {[%emt 0:00:23]} 58. Kc7 {[%emt 0:00:05]} Rc3+ {[%emt 0:00:06]} 59. Kb8 {[%emt 0:02:08]} Rb3 {[%emt 0:00:48]} 60. b7 {[%emt 0:00:06]} Rc3 {[%emt 0:00:15]} 61. Ka7 {[%emt 0:09:45]} Ra3+ {[%emt 0:00:09]} 62. Kb6 {[%emt 0:00:11]} Rb3+ {[%emt 0:00:06]} 63. Kc7 $11 {[%emt 0:00:06]} Rc3+ {[%emt 0:00:08]} 64. Kb8 {[%emt 0:00:03]} Rb3 {[%emt 0:00:13]} 65. Rh1 {[%emt 0:02:28]} Rb2 {[%emt 0:00:28]} 66. Rc1 {[%emt 0:02:07]} Kxh5 {[%emt 0:00:23]} 67. Kc7 {[%emt 0:00:24]} Kg5 1/2-1/2

[Event "FRA-ch Youth 2017"]
[Site "Belfort"]
[Date "2017.04.18"]
[Round "4"]
[White "Afraoui, Anaelle"]
[Black "Retailleau, Elise"]
[Result "0-1"]
[ECO "B32"]
[WhiteElo "1977"]
[BlackElo "1946"]
[Annotator "NA RC"]
[PlyCount "88"]
[EventDate "2017.??.??"]
[EventCountry "FRA"]
[SourceTitle "playchess.com"]
[Source "ChessBase"]
[SourceQuality "1"]
[TimeControl "5400+30"]

{[%evp 8,88,5,32767,32767,32767,32767,32767,32767,32767,32767,25,46,32,40,-17,-10,-27,0,-28,-21,-27,-39,-58,-64,-50,-37,-40,-37,-50,-33,-39,-67,-276,-214,-214,0,-52,-62,-69,-37,-539,-569,-577,-571,-579,-344,-569,-585,-857,-555,-956,-1123,-952,-1121,-29980,-2126,-1745,868,-29983,-955,-1204,-320,-387,-331,-502,-425,-653,-634,32767,-1148,-29982,-29986,-29983,-29987,-29984,-29988,-29988,-29980,-29976,-29977,-29982,-29982]} 1. e4 {[%emt 0:00:00]} c5 {[%emt 0:00:21]} 2. Nf3 {[%emt 0:00:00]} Nc6 {[%emt 0:00:18]} 3. d4 {[%emt 0:00:03]} cxd4 {[%emt 0:00:17]} 4. Nxd4 {[%emt 0:00:07]} e5 {[%emt 0:00:21]} 5. Nb5 {[%emt 0:01:10]} d6 {[%emt 0:00:38]} 6. N1c3 {[%emt 0:03:10]} a6 {[%emt 0:00:40]} 7. Na3 {[%emt 0:00:16]} b5 {[%emt 0:00:29]} 8. Nd5 {[%emt 0:01:25]} Nge7 {[%emt 0:00:38]} 9. c4 {[%emt 0:05:05]} Nxd5 {[%emt 0:01:46] B32: Sicilian: Löwenthal and Kalashnikov Variations} (9... Nd4 10. Be3 Nxd5 11. exd5 Nf5 12. cxb5 Nxe3 13. fxe3 Qh4+ 14. g3 Qe4 15. Qc2 Qxe3+ 16. Be2 Bd7 17. bxa6 Be7 18. Qd2 Qe4 19. O-O O-O {1-0 (39) Gabrielian,A (2532)-Adhiban,B (2682) Moscow 2017}) 10. exd5 {[%emt 0:05:46]} Nd4 {[%emt 0:01:50] LiveBook: 51 Games} 11. Nc2 {[%emt 0:04:53]} ({White should try} 11. cxb5 $14 Be7 12. Bd3) 11... Nxc2+ {[%emt 0:08:53]} (11... Bg4 $5 12. Qd2 $8 Nxc2+ 13. Qxc2 bxc4 $11) 12. Qxc2 {[%emt 0:00:08]} Bd7 {[%emt 0:01:38]} 13. cxb5 {[%emt 0:03:34]} axb5 {[%emt 0:09:07]} 14. Bd3 {[%emt 0:00:44]} g6 {[%emt 0:01:33]} 15. h4 $146 {[%emt 0:05:53]} (15. O-O Bg7 16. Bd2 O-O 17. Qb3 Qb6 18. a4 Qd4 19. Be3 bxa4 20. Bxd4 axb3 {0-1 (56) Petkovic,R (2293)-Pap,M (2416) Backa Palanka 2001}) 15... f5 {[%emt 0:09:28]} 16. Bg5 {[%emt 0:11:29]} Qa5+ {[%emt 0:07:02]} 17. Kf1 {[%emt 0:02:44]} Kf7 {[%emt 0:07:58]} 18. h5 {[%emt 0:07:09]} Bg7 {[%emt 0:01:51]} 19. g4 {[%emt 0:05:37]} e4 {[%emt 0:11:00]} 20. Bxe4 $2 {[%emt 0:05:01]} (20. Re1 $15) 20... fxe4 {[%emt 0:07:47]} 21. Qxe4 {[%emt 0:00:08]} Rae8 $2 {[%emt 0:01:10]} ({Wrong is} 21... Bxb2 $2 22. Qe7+ Kg8 23. Qxd7 $18) (21... Kg8 $19 {And now ...Re8 would win.} 22. hxg6 hxg6 23. Rxh8+ Kxh8 24. Qxg6 Qa4) 22. Qf4+ {[%emt 0:01:57]} Kg8 {[%emt 0:02:16]} 23. hxg6 {[%emt 0:01:25]} Rf8 $1 {[%emt 0:08:14]} 24. Qe3 $2 {[%emt 0:19:01]} (24. Qxd6 $15 Bxg4 25. Be7 (25. gxh7+ Rxh7 26. Rxh7 Kxh7 27. Qh2+ Kg6 $19)) 24... Qb4 {[%emt 0:07:02]} (24... Bxb2 25. gxh7+ Rxh7 26. Rxh7 Kxh7 27. Qe7+ Kg8 28. Qxd7 Bxa1 29. Qe6+ Rf7 30. Qe8+ Kg7 {[#]} 31. Bh6+ $1 {[%mdl 512]} Kxh6 32. Qxf7 $17) 25. gxh7+ {[%emt 0:14:30]} Rxh7 {[%emt 0:00:24]} 26. Rxh7 {[%emt 0:00:36]} Kxh7 {[%emt 0:00:25]} 27. f4 {[%emt 0:00:59]} (27. Re1 $142 Qc4+ 28. Kg1) 27... Bxg4 {[%emt 0:05:02]} 28. Qd3+ {[%emt 0:00:37]} Kg8 {[%emt 0:00:52]} 29. Qg3 {[%emt 0:00:27]} Qc4+ {[%emt 0:01:57]} ({Not} 29... Bxb2 30. Qxg4 Qc4+ 31. Kg1 Qd4+ 32. Kh2 Qd2+ 33. Kg3 (33. Kg1 Qe3+ 34. Kh2 Bxa1 35. Bf6+ (35. Bh6+ $2 Kf7 36. Qf5+ Bf6 37. Bxf8 Qf2+ 38. Kh3 Qh4+ 39. Kg2 Kxf8 $19) 35... Kf7 36. Qg7+ Ke8 37. Qg6+ Kd7 38. Qg7+ Ke8 39. Qg6+ Rf7 40. Qg8+ Rf8 41. Qg6+ $11) 33... Qd3+ 34. Kh4 Qh7+ 35. Kg3 Qd3+ 36. Kh4 Qh7+ 37. Kg3 Qd3+ $11) 30. Kg1 {[%emt 0:00:27]} Bd4+ {[%emt 0:01:32]} 31. Kh1 {[%emt 0:00:31]} Qxd5+ {[%emt 0:00:37]} 32. Kh2 {[%emt 0:00:27]} Be6 $4 {[%emt 0:01:28]} ({Less strong is} 32... Bxb2 33. Qxg4 Bxa1 34. Bh6+ Kh8 35. Bxf8 $17) (32... Qf5 $19 33. Rg1 Qh7+ 34. Bh4 Bxg1+ 35. Kxg1 Qb1+ 36. Kh2 Qxb2+ 37. Qf2 Qc3) 33. Bh6+ {[%emt 0:00:35]} (33. Bf6+ $18 Bg4 34. Qxg4+ Kf7 35. Qg7+ Ke6 36. Re1+ Be5 37. Bxe5 Qd2+ 38. Kh3 Qxe1 39. Qg6+ (39. Qxf8 dxe5 40. Qg8+ Kd6 41. Qg6+ Kd5 42. Qd3+ Ke6 $16) 39... Kd5 40. Qd3+ Kc6 41. Qxd6+ Kb7 42. Qd7+ Ka8 43. Qc6+ (43. Qxb5 Qh1+ 44. Kg3 Rg8+ 45. Kf2 Qg1+ 46. Kf3 Qh1+ 47. Ke3 Qc1+ 48. Ke4 Qb1+ 49. Kf3 Qd1+ 50. Ke4 Qb1+ 51. Kd5 Qxa2+ 52. Kd6 Rg6+ 53. Kc5 Qa7+ 54. Kd5 Qa2+ 55. Kd4 Rg8 $16) 43... Ka7 44. Bd4+ (44. Qxb5 Qe3+ 45. Kg4 Rg8+ 46. Kf5 Rf8+ 47. Kg4 (47. Bf6 Qd4 $11) 47... Rg8+ 48. Kf5 Rf8+ 49. Kg4 $14) 44... Kb8 45. Be5+ Ka7 46. Qc5+ Ka6 47. Qxf8) 33... Kh7 {[%emt 0:00:35]} (33... Kf7 $142 34. f5 Qxf5 35. Rf1 Qxf1 36. Qf4+ Qxf4+ 37. Bxf4 Rg8 38. Bg3 Be5 39. Kg1 Bxg3 40. Kf1 Bc4+ 41. Kg2 Bd5+ 42. Kh3 Bf2 43. b3 Bf3 44. Kh2 Rh8#) 34. Qh4 {[%emt 0:00:29]} Bg7 $2 {[%emt 0:00:51]} (34... Rh8 35. Rf1 Qe4) 35. Bxg7+ {[%emt 0:00:20]} Kxg7 {[%emt 0:00:05]} 36. Rg1+ {[%emt 0:00:05]} (36. Qe7+ $142 Rf7 37. Rg1+ Kh6 38. Qg5+ Qxg5 39. Rxg5) 36... Kf7 {[%emt 0:00:16]} 37. Qh7+ {[%emt 0:00:55]} (37. Qh6 $142) 37... Ke8 {[%emt 0:00:14]} 38. Rg2 {[%emt 0:00:35]} Qd4 {[%emt 0:01:15]} 39. Rg7 {[%emt 0:00:40]} Qxf4+ {[%emt 0:00:18]} 40. Rg3 {[%emt 0:00:20]} Rg8 {[%emt 0:01:24]} 41. Qh5+ {[%emt 0:00:24]} Kd8 {[%emt 0:00:43]} 42. Qf3 {[%emt 0:00:28]} Qxg3+ {[%emt 0:00:08]} 43. Qxg3 {[%emt 0:00:05]} Rxg3 {[%emt 0:00:04]} 44. Kxg3 {[%emt 0:00:04]} Bxa2 {[%emt 0:00:03]} 0-1

[Event "FRA-ch Youth 2017"]
[Site "Belfort"]
[Date "2017.04.18"]
[Round "4"]
[White "Rollot, Florence"]
[Black "Mutzel, Annabelle"]
[Result "1-0"]
[ECO "A06"]
[WhiteElo "1973"]
[BlackElo "1607"]
[Annotator "NA RC"]
[PlyCount "73"]
[EventDate "2017.??.??"]
[EventCountry "FRA"]
[SourceTitle "playchess.com"]
[Source "ChessBase"]
[SourceQuality "1"]
[TimeControl "5400+30"]

{[%evp 16,71,-8,-22,4,-20,-17,-21,-20,-23,-2,0,5,-2,8,12,105,25,87,65,99,100,93,87,181,190,195,193,242,272,300,292,226,269,393,433,425,421,476,558,504,618,645,645,608,-39,-10,74,-9,-36,-31,-37,5712,29978,29988,29989,29991,1365]} 1. Nf3 {[%emt 0:00:00]} d5 {[%emt 0:00:07]} 2. g3 {[%emt 0:00:00]} Nf6 {[%emt 0:00:27]} 3. Bg2 {[%emt 0:00:05]} Bg4 {[%emt 0:01:34]} 4. O-O {[%emt 0:00:35]} e6 {[%emt 0:00:22]} 5. c4 {[%emt 0:00:32]} c6 {[%emt 0:00:26]} 6. d3 {[%emt 0:01:14]} Be7 {[%emt 0:02:19]} 7. a3 {[%emt 0:02:25] A11: English Opening: 1...c6} (7. cxd5 Bxf3 8. Bxf3 cxd5 9. b3 Nc6 10. Bb2 O-O 11. e3 Rc8 12. a3 Ne8 13. d4 Nd6 14. Qd3 Na5 {½-½ (56) Nakamura,H (2785)-Adams,M (2751) Sharjah 2017}) 7... Nbd7 {[%emt 0:04:01]} 8. Nc3 {[%emt 0:03:42]} O-O $146 {[%emt 0:04:31]} (8... a5 9. Qc2 O-O 10. b3 Qc7 11. h3 Bh5 12. Bb2 Rfd8 13. Rfc1 Rac8 14. Na4 c5 15. cxd5 exd5 {½-½ (29) Grigoriev,I (2191)-O'Neill Y Daneiko,J (2084) Alicante 2010}) 9. Bf4 {[%emt 0:02:37]} Bxf3 {[%emt 0:05:34]} 10. Bxf3 {[%emt 0:01:33]} e5 {[%emt 0:00:34]} 11. Bd2 {[%emt 0:00:42]} d4 {[%emt 0:00:38]} 12. Ne4 {[%emt 0:02:20]} Nxe4 {[%emt 0:01:44]} 13. Bxe4 {[%emt 0:00:21]} f5 {[%emt 0:00:07]} 14. Bg2 {[%emt 0:00:47]} f4 {[%emt 0:11:04]} 15. b4 {[%emt 0:04:31]} g5 {[%emt 0:27:31]} (15... Qe8 $11) 16. Qb3 {[%emt 0:10:21]} (16. e3 $16) 16... Nf6 {[%emt 0:02:48]} (16... Kg7 $11) 17. b5 {[%emt 0:04:26]} Qd7 {[%emt 0:01:06]} 18. bxc6 {[%emt 0:03:04]} bxc6 {[%emt 0:00:06]} 19. Rab1 {[%emt 0:02:54]} Rab8 {[%emt 0:05:28]} (19... Qe6 $16) 20. Qxb8 {[%emt 0:07:01]} Rxb8 {[%emt 0:00:10]} 21. Rxb8+ {[%emt 0:00:06]} Kg7 {[%emt 0:00:00] [#]} 22. Rfb1 $1 {[%emt 0:00:45]} Kg6 {[%emt 0:15:48]} 23. R8b7 {[%emt 0:03:24]} Qe6 {[%emt 0:01:50]} 24. Rxa7 {[%emt 0:07:47]} fxg3 {[%emt 0:00:59]} 25. hxg3 {[%emt 0:01:53]} ({Less strong is} 25. fxg3 e4 26. Rf1 (26. Rbb7 Bf8 $18) 26... h6 $18) 25... e4 {[%emt 0:02:43]} 26. Rbb7 {[%emt 0:12:10]} e3 {[%emt 0:00:59]} 27. fxe3 {[%emt 0:01:58]} ({Not} 27. Rxe7 $2 Qxe7 28. Rxe7 exd2 29. Bxc6 (29. Be4+ $2 Nxe4 30. Rxe4 d1=Q+ 31. Kg2 Kf6 $19) 29... d1=Q+ 30. Kg2 Qb1 31. Be4+ Nxe4 32. Rxe4 Qb7 $19) 27... dxe3 {[%emt 0:00:05] [#]} 28. Be1 $1 {[%emt 0:03:27]} ({Don't take} 28. Rxe7 $2 Qxe7 29. Rxe7 exd2 30. Bxc6 d1=Q+ 31. Kg2 h5 $19) 28... Bd6 {[%emt 0:05:58]} 29. Rg7+ {[%emt 0:09:36]} ({Not} 29. Bxc6 Bxg3 30. Rg7+ (30. Bxg3 Qg4 31. Rg7+ Kh6 $11) 30... Kh6 $16) 29... Kh6 {[%emt 0:00:24] [#]} 30. Be4 $2 {[%emt 0:08:49]} ({Not} 30. Bxc6 Bb8 31. Bd5 Qe5 $11) (30. Bc3 $1 $18 Qf5 31. Raf7) 30... Nxe4 {[%emt 0:00:11]} 31. Rxh7+ {[%emt 0:00:19]} (31. dxe4 Qxc4 32. Rxh7+ Kg6 $11) 31... Kg6 {[%emt 0:00:06]} 32. Rag7+ {[%emt 0:04:09]} Kf5 {[%emt 0:00:15]} 33. dxe4+ {[%emt 0:00:24]} Kxe4 $2 {[%emt 0:00:25]} (33... Qxe4 $15 34. Rh5 Be7) 34. Rxg5 {[%emt 0:00:27]} Qf5 {[%emt 0:04:18]} 35. Rh4+ {[%emt 0:00:47]} Ke5 {[%emt 0:00:18]} 36. Bc3+ $18 {[%emt 0:00:10]} Ke6 {[%emt 0:00:04]} 37. Rh6+ {[%emt 0:00:08]} 1-0